[Event "USA Junior-ch 2022"]
[Site "Saint Louis"]
[Date "2022.07.13"]
[Round "6.2"]
[White "Espinosa, Pedro"]
[Black "Jacobson, Brandon"]
[Result "0-1"]
[ECO "A50"]
[WhiteElo "2130"]
[BlackElo "2544"]
[Annotator "ChessBase"]
[PlyCount "66"]
[EventDate "2022.07.07"]
[EventType "tourn"]
[EventCountry "USA"]
[SourceTitle "playchess.com"]
[Source "ChessBase"]
[SourceQuality "1"]
[TimeControl "40/5400+30:1800+30"]

1. d4 {[%emt 0:00:02]} Nf6 {[%emt 0:00:08]} 2. c4 {[%emt 0:00:33]} b6 {[%emt 0:00:54]} 3. Nc3 {[%emt 0:04:44]} Bb7 {[%emt 0:00:10]} 4. d5 {[%emt 0:02:01]} e6 {[%emt 0:00:06]} 5. a3 {[%emt 0:03:01]} g6 {[%emt 0:00:51]} 6. e4 {[%emt 0:02:01]} d6 {[%emt 0:00:06]} 7. Be3 {[%emt 0:03:34]} Bg7 {[%emt 0:00:44]} 8. Be2 {[%emt 0:03:20]} O-O {[%emt 0:01:28]} 9. Qd2 {[%emt 0:01:55]} exd5 {[%emt 0:03:53]} 10. exd5 {[%emt 0:02:45]} c6 {[%emt 0:00:26]} 11. dxc6 {[%emt 0:03:04]} Nxc6 {[%emt 0:00:08]} 12. Nf3 {[%emt 0:05:13]} Na5 {[%emt 0:00:24]} 13. Rd1 {[%emt 0:04:02]} Qc8 {[%emt 0:09:33]} 14. Nb5 {[%emt 0:04:52]} Bxf3 {[%emt 0:03:05]} 15. Nxd6 {[%emt 0:06:47]} Ne4 {[%emt 0:33:52]} 16. Nxc8 {[%emt 0:07:16]} Nxd2 {[%emt 0:00:09]} 17. Ne7+ {[%emt 0:09:32]} Kh8 {[%emt 0:00:02]} 18. gxf3 {[%emt 0:02:32]} Ndb3 {[%emt 0:00:10]} 19. Rb1 {[%emt 0:02:25]} Rfe8 {[%emt 0:00:47]} 20. Nd5 {[%emt 0:01:49]} Rac8 {[%emt 0:00:11]} 21. c5 {[%emt 0:03:12]} bxc5 {[%emt 0:01:24]} 22. O-O {[%emt 0:01:22]} Rcd8 {[%emt 0:02:10]} 23. Nc3 {[%emt 0:03:16]} Nd2 {[%emt 0:10:31]} 24. Bxd2 {[%emt 0:00:57]} Rxd2 {[%emt 0:00:04]} 25. Bb5 {[%emt 0:01:29]} Rb8 {[%emt 0:00:02]} 26. a4 {[%emt 0:01:22]} c4 {[%emt 0:05:53]} 27. Rfd1 {[%emt 0:04:13]} Rbd8 {[%emt 0:00:13]} 28. Re1 {[%emt 0:03:05]} Bd4 {[%emt 0:01:15]} 29. Nd1 {[%emt 0:01:06]} Rd6 {[%emt 0:04:10]} 30. Re7 {[%emt 0:06:19]} a6 {[%emt 0:00:59]} 31. Be8 {[%emt 0:00:46]} Kg8 {[%emt 0:06:41]} 32. Kf1 {[%emt 0:04:56]} Kf8 {[%emt 0:04:46]} 33. Rd7 {[%emt 0:00:23]} Bb6 {[%emt 0:00:14]} 0-1

[Event "USA Junior-ch 2022"]
[Site "Saint Louis"]
[Date "2022.07.13"]
[Round "6.3"]
[White "Brodsky, David"]
[Black "Liang, Awonder"]
[Result "1-0"]
[ECO "B12"]
[WhiteElo "2496"]
[BlackElo "2625"]
[Annotator "ChessBase"]
[PlyCount "80"]
[EventDate "2022.07.07"]
[EventType "tourn"]
[EventCountry "USA"]
[SourceTitle "playchess.com"]
[Source "ChessBase"]
[SourceQuality "1"]
[TimeControl "40/5400+30:1800+30"]

1. e4 {[%emt 0:00:01]} c6 {[%emt 0:00:01]} 2. d4 {[%emt 0:00:08]} d5 {[%emt 0:00:05]} 3. e5 {[%emt 0:00:04]} Bf5 {[%emt 0:00:06]} 4. Nf3 {[%emt 0:00:06]} e6 {[%emt 0:00:06]} 5. Be2 {[%emt 0:00:05]} Nd7 {[%emt 0:00:06]} 6. O-O {[%emt 0:00:07]} h6 {[%emt 0:00:06]} 7. Nbd2 {[%emt 0:00:11]} Ne7 {[%emt 0:00:07]} 8. Nb3 {[%emt 0:00:04]} a6 {[%emt 0:00:08]} 9. Bd2 {[%emt 0:03:23]} g5 {[%emt 0:00:08]} 10. Ne1 {[%emt 0:11:41]} Bg7 {[%emt 0:00:10]} 11. Nd3 {[%emt 0:04:52]} b6 {[%emt 0:00:02]} 12. c3 {[%emt 0:16:15]} c5 {[%emt 0:25:54]} 13. Ne1 {[%emt 0:02:41]} O-O {[%emt 0:02:36]} 14. f4 {[%emt 0:02:24]} c4 {[%emt 0:03:12]} 15. fxg5 {[%emt 0:04:53]} hxg5 {[%emt 0:02:05]} 16. Nc1 {[%emt 0:00:39]} f6 {[%emt 0:01:14]} 17. exf6 {[%emt 0:02:35]} Nxf6 {[%emt 0:00:02]} 18. Bxg5 {[%emt 0:02:16]} Ne4 {[%emt 0:00:01]} 19. Be3 {[%emt 0:02:33]} Qd7 {[%emt 0:10:11]} 20. Bh5 {[%emt 0:03:18]} Bh7 {[%emt 0:03:05]} 21. Nf3 {[%emt 0:03:27]} Nf5 {[%emt 0:11:41]} 22. Bf4 {[%emt 0:02:54]} Bh6 {[%emt 0:04:17]} 23. Bxh6 {[%emt 0:06:40]} Nxh6 {[%emt 0:00:14]} 24. Ne2 {[%emt 0:02:51]} Qg7 {[%emt 0:00:16]} 25. Qe1 {[%emt 0:05:45]} Kh8 {[%emt 0:05:26]} 26. Ng3 {[%emt 0:01:56]} Rg8 {[%emt 0:04:33]} 27. Ne5 {[%emt 0:01:22]} Ra7 {[%emt 0:00:01]} 28. Rf3 {[%emt 0:07:57]} Bf5 {[%emt 0:07:56]} 29. Qe2 {[%emt 0:02:03]} Qh7 {[%emt 0:00:01]} 30. Nxe4 {[%emt 0:03:12]} Bxe4 {[%emt 0:00:36]} 31. Rg3 {[%emt 0:00:37]} Rxg3 {[%emt 0:05:13]} 32. hxg3 {[%emt 0:00:04]} Nf5 {[%emt 0:16:51]} 33. g4 {[%emt 0:01:43]} Ng3 {[%emt 0:00:00]} 34. Qf2 {[%emt 0:00:22]} Rg7 {[%emt 0:00:00]} 35. Qxg3 {[%emt 0:01:23]} Qxh5 {[%emt 0:00:00]} 36. Qh3 {[%emt 0:01:35]} Qh7 {[%emt 0:00:00]} 37. Rf1 {[%emt 0:00:25]} Kg8 {[%emt 0:00:00]} 38. Rf6 {[%emt 0:00:47]} Re7 {[%emt 0:00:00]} 39. g5 {[%emt 0:01:41]} Qg7 {[%emt 0:00:00]} 40. Qh6 {[%emt 0:00:51]} b5 {[%emt 0:00:00]} 1-0

[Event "USA Junior-ch 2022"]
[Site "Saint Louis"]
[Date "2022.07.14"]
[Round "6.4"]
[White "Daggupati, Balaji"]
[Black "Mishra, Abhimanyu"]
[Result "1/2-1/2"]
[ECO "B90"]
[WhiteElo "2488"]
[BlackElo "2553"]
[Annotator "ChessBase"]
[PlyCount "163"]
[EventDate "2022.07.07"]
[EventType "tourn"]
[EventCountry "USA"]
[SourceTitle "playchess.com"]
[Source "ChessBase"]
[SourceQuality "1"]
[TimeControl "40/5400+30:1800+30"]

1. e4 {[%emt 0:00:03]} c5 {[%emt 0:00:05]} 2. Nf3 {[%emt 0:00:06]} d6 {[%emt 0:00:13]} 3. d4 {[%emt 0:00:06]} cxd4 {[%emt 0:00:06]} 4. Nxd4 {[%emt 0:00:04]} Nf6 {[%emt 0:00:17]} 5. Nc3 {[%emt 0:00:05]} a6 {[%emt 0:00:19]} 6. Be3 {[%emt 0:00:09]} e5 {[%emt 0:00:32]} 7. Nf3 {[%emt 0:00:07]} Be7 {[%emt 0:00:46]} 8. h3 {[%emt 0:00:06]} Be6 {[%emt 0:01:17]} 9. g4 {[%emt 0:00:43]} h6 {[%emt 0:00:40]} 10. g5 {[%emt 0:07:17]} hxg5 {[%emt 0:00:18]} 11. Nxg5 {[%emt 0:00:08]} Nc6 {[%emt 0:01:30]} 12. Nxe6 {[%emt 0:06:00]} fxe6 {[%emt 0:00:10]} 13. Bc4 {[%emt 0:05:32]} Qd7 {[%emt 0:07:27]} 14. Rg1 {[%emt 0:08:19]} Rxh3 {[%emt 0:14:45]} 15. Qd2 {[%emt 0:18:05]} O-O-O {[%emt 0:06:14]} 16. O-O-O {[%emt 0:09:23]} Bf8 {[%emt 0:09:44]} 17. Qe2 {[%emt 0:13:21]} Kb8 {[%emt 0:05:54]} 18. Rd3 {[%emt 0:03:54]} Nd4 {[%emt 0:16:25]} 19. Bxd4 {[%emt 0:00:52]} Rxd3 {[%emt 0:00:07]} 20. Qxd3 {[%emt 0:00:24]} exd4 {[%emt 0:00:06]} 21. Qxd4 {[%emt 0:00:04]} d5 {[%emt 0:06:21]} 22. exd5 {[%emt 0:00:51]} exd5 {[%emt 0:00:41]} 23. Bb3 {[%emt 0:01:57]} Qf5 {[%emt 0:04:19]} 24. Re1 {[%emt 0:05:48]} Bd6 {[%emt 0:04:29]} 25. Kb1 {[%emt 0:00:05]} Qf4 {[%emt 0:04:47]} 26. Qxf4 {[%emt 0:05:33]} Bxf4 {[%emt 0:00:02]} 27. Re7 {[%emt 0:00:16]} g5 {[%emt 0:04:20]} 28. f3 {[%emt 0:00:53]} d4 {[%emt 0:01:41]} 29. Ne2 {[%emt 0:00:45]} d3 {[%emt 0:03:06]} 30. cxd3 {[%emt 0:01:39]} Rxd3 {[%emt 0:00:25]} 31. Nxf4 {[%emt 0:00:16]} gxf4 {[%emt 0:00:07]} 32. Rf7 {[%emt 0:00:04]} Rd6 {[%emt 0:02:29]} 33. Kc2 {[%emt 0:03:34]} Ka7 {[%emt 0:01:31]} 34. Rg7 {[%emt 0:03:37]} Nd5 {[%emt 0:03:32]} 35. Kd3 {[%emt 0:03:03]} Nb4+ {[%emt 0:00:54]} 36. Kc3 {[%emt 0:01:39]} Nc6 {[%emt 0:01:13]} 37. Rg5 {[%emt 0:01:30]} Kb6 {[%emt 0:00:22]} 38. Bd5 {[%emt 0:00:46]} Ne7 {[%emt 0:01:14]} 39. Be4 {[%emt 0:00:03]} Nc6 {[%emt 0:00:21]} 40. Rf5 {[%emt 0:01:39]} Nd4 {[%emt 0:00:52]} 41. Rf7 {[%emt 0:02:45]} Nb5+ {[%emt 0:02:39]} 42. Kb3 {[%emt 0:01:14]} Nc7 {[%emt 0:02:18]} 43. Kc4 {[%emt 0:07:33]} Rd2 {[%emt 0:04:37]} 44. a4 {[%emt 0:02:16]} a5 {[%emt 0:05:27]} 45. b4 {[%emt 0:03:17]} Rd1 {[%emt 0:01:28]} 46. b5 {[%emt 0:02:42]} Rc1+ {[%emt 0:03:16]} 47. Kb3 {[%emt 0:00:04]} Ka7 {[%emt 0:00:47]} 48. Rh7 {[%emt 0:06:53]} Rc5 {[%emt 0:04:42]} 49. Rg7 {[%emt 0:00:04]} Rc1 {[%emt 0:00:24]} 50. Rf7 {[%emt 0:00:14]} Rc5 {[%emt 0:00:32]} 51. Rf6 {[%emt 0:04:20]} Na8 {[%emt 0:00:28]} 52. Rxf4 {[%emt 0:00:04]} Rc7 {[%emt 0:00:16]} 53. Bc2 {[%emt 0:04:00]} Nb6 {[%emt 0:01:11]} 54. Rd4 {[%emt 0:00:12]} Rg7 {[%emt 0:04:20]} 55. Rd8 {[%emt 0:01:09]} Rc7 {[%emt 0:01:17]} 56. Rd4 {[%emt 0:00:20]} Rg7 {[%emt 0:00:10]} 57. f4 {[%emt 0:00:58]} Rg3+ {[%emt 0:00:47]} 58. Rd3 {[%emt 0:00:04]} Rg4 {[%emt 0:01:57]} 59. Rf3 {[%emt 0:00:11]} Kb8 {[%emt 0:01:20]} 60. f5 {[%emt 0:01:29]} Rxa4 {[%emt 0:01:01]} 61. f6 {[%emt 0:01:04]} Rb4+ {[%emt 0:00:09]} 62. Ka2 {[%emt 0:00:32]} Nd7 {[%emt 0:00:51]} 63. f7 {[%emt 0:00:14]} Kc7 {[%emt 0:01:17]} 64. Rc3+ {[%emt 0:01:09]} Kd8 {[%emt 0:00:19]} 65. Bf5 {[%emt 0:00:24]} Nf8 {[%emt 0:00:40]} 66. Rc8+ {[%emt 0:00:55]} Ke7 {[%emt 0:00:01]} 67. Rc7+ {[%emt 0:00:04]} Kf6 {[%emt 0:00:16]} 68. Bd3 {[%emt 0:00:05]} b6 {[%emt 0:00:57]} 69. Bc4 {[%emt 0:00:03]} Kg7 {[%emt 0:00:34]} 70. Rc8 {[%emt 0:00:18]} Kf6 {[%emt 0:00:30]} 71. Rc6+ {[%emt 0:01:39]} Kg7 {[%emt 0:00:08]} 72. Rc7 {[%emt 0:00:37]} Kf6 {[%emt 0:00:19]} 73. Ka3 {[%emt 0:00:14]} Kg7 {[%emt 0:00:31]} 74. Rc6 {[%emt 0:00:20]} Nd7 {[%emt 0:00:35]} 75. Rc8 {[%emt 0:00:22]} Nf8 {[%emt 0:00:18]} 76. Rc7 {[%emt 0:00:51]} Kf6 {[%emt 0:00:20]} 77. Bd3 {[%emt 0:00:24]} Kg7 {[%emt 0:00:52]} 78. Rb7 {[%emt 0:00:33]} Rd4 {[%emt 0:01:23]} 79. Bc2 {[%emt 0:00:04]} Rb4 {[%emt 0:00:16]} 80. Ba4 {[%emt 0:00:46]} Ne6 {[%emt 0:00:44]} 81. Rxb6 {[%emt 0:01:15]} Nc5 {[%emt 0:00:18]} 82. Bd1 {[%emt 0:00:23]} 1/2-1/2

[Event "USA Junior-ch 2022"]
[Site "Saint Louis"]
[Date "2022.07.13"]
[Round "6.5"]
[White "Hong, Andrew"]
[Black "Yip, Carissa"]
[Result "1-0"]
[ECO "E73"]
[WhiteElo "2504"]
[BlackElo "2416"]
[Annotator "ChessBase"]
[PlyCount "75"]
[EventDate "2022.07.07"]
[EventType "tourn"]
[EventCountry "USA"]
[SourceTitle "playchess.com"]
[Source "ChessBase"]
[SourceQuality "1"]
[TimeControl "40/5400+30:1800+30"]

1. d4 {[%emt 0:00:02]} Nf6 {[%emt 0:01:18]} 2. c4 {[%emt 0:00:14]} g6 {[%emt 0:05:19]} 3. Nc3 {[%emt 0:00:09]} Bg7 {[%emt 0:00:04]} 4. e4 {[%emt 0:00:06]} d6 {[%emt 0:00:03]} 5. Be2 {[%emt 0:00:18]} O-O {[%emt 0:00:07]} 6. Be3 {[%emt 0:00:04]} c5 {[%emt 0:05:12]} 7. d5 {[%emt 0:00:53]} e6 {[%emt 0:00:04]} 8. Nf3 {[%emt 0:00:36]} exd5 {[%emt 0:00:05]} 9. cxd5 {[%emt 0:00:50]} Ng4 {[%emt 0:07:11]} 10. Bf4 {[%emt 0:03:40]} f5 {[%emt 0:00:14]} 11. exf5 {[%emt 0:05:52]} Bxf5 {[%emt 0:05:12]} 12. O-O {[%emt 0:01:26]} Na6 {[%emt 0:03:52]} 13. h3 {[%emt 0:07:26]} Nf6 {[%emt 0:04:08]} 14. Nd2 {[%emt 0:06:48]} Nb4 {[%emt 0:20:24]} 15. Nc4 {[%emt 0:06:20]} Ne4 {[%emt 0:05:26]} 16. Nxe4 {[%emt 0:06:46]} Bxe4 {[%emt 0:00:02]} 17. Qd2 {[%emt 0:13:57]} Bxd5 {[%emt 0:21:29]} 18. Bxd6 {[%emt 0:03:19]} Rf5 {[%emt 0:05:07]} 19. a3 {[%emt 0:14:18]} Nc6 {[%emt 0:01:15]} 20. g4 {[%emt 0:02:09]} Nd4 {[%emt 0:04:02]} 21. gxf5 {[%emt 0:02:01]} b5 {[%emt 0:01:48]} 22. Bg3 {[%emt 0:11:30]} bxc4 {[%emt 0:00:05]} 23. fxg6 {[%emt 0:02:20]} hxg6 {[%emt 0:02:39]} 24. Rac1 {[%emt 0:02:59]} Qd7 {[%emt 0:00:45]} 25. Kh2 {[%emt 0:01:01]} Re8 {[%emt 0:01:49]} 26. Bd1 {[%emt 0:00:17]} Kh7 {[%emt 0:01:10]} 27. Rc3 {[%emt 0:01:40]} Bb7 {[%emt 0:00:50]} 28. Qf4 {[%emt 0:03:42]} Qd5 {[%emt 0:00:21]} 29. f3 {[%emt 0:00:52]} Nf5 {[%emt 0:01:26]} 30. Qxc4 {[%emt 0:01:17]} Qd2+ {[%emt 0:00:28]} 31. Bf2 {[%emt 0:00:21]} Be5+ {[%emt 0:01:02]} 32. Kg1 {[%emt 0:01:18]} Re7 {[%emt 0:01:43]} 33. Rc2 {[%emt 0:01:08]} Qh6 {[%emt 0:00:16]} 34. Qg4 {[%emt 0:00:27]} Bc8 {[%emt 0:01:10]} 35. Re1 {[%emt 0:01:17]} Rd7 {[%emt 0:01:15]} 36. Rxc5 {[%emt 0:00:31]} Bd4 {[%emt 0:00:35]} 37. Bxd4 {[%emt 0:00:31]} Rxd4 {[%emt 0:00:26]} 38. Qxd4 {[%emt 0:00:29]} 1-0

[Event "USA Junior-ch 2022"]
[Site "Saint Louis"]
[Date "2022.07.15"]
[Round "7.1"]
[White "Yip, Carissa"]
[Black "Daggupati, Balaji"]
[Result "1/2-1/2"]
[ECO "C45"]
[WhiteElo "2416"]
[BlackElo "2488"]
[Annotator "ChessBase"]
[PlyCount "139"]
[EventDate "2022.07.07"]
[EventType "tourn"]
[EventCountry "USA"]
[SourceTitle "playchess.com"]
[Source "ChessBase"]
[SourceQuality "1"]
[TimeControl "40/5400+30:1800+30"]

1. e4 {[%emt 0:00:02]} e5 {[%emt 0:00:07]} 2. Nf3 {[%emt 0:00:06]} Nc6 {[%emt 0:00:04]} 3. d4 {[%emt 0:00:04]} exd4 {[%emt 0:00:06]} 4. Nxd4 {[%emt 0:00:03]} Nf6 {[%emt 0:00:06]} 5. Nxc6 {[%emt 0:00:03]} bxc6 {[%emt 0:00:05]} 6. e5 {[%emt 0:00:04]} Qe7 {[%emt 0:00:06]} 7. Qe2 {[%emt 0:00:08]} Nd5 {[%emt 0:00:05]} 8. Nd2 {[%emt 0:00:04]} a5 {[%emt 0:12:48]} 9. c4 {[%emt 0:04:48]} Nb6 {[%emt 0:02:36]} 10. g3 {[%emt 0:06:39]} Qe6 {[%emt 0:08:16]} 11. b3 {[%emt 0:11:03]} Bb4 {[%emt 0:16:49]} 12. Bb2 {[%emt 0:00:05]} O-O {[%emt 0:04:22]} 13. Bg2 {[%emt 0:23:35]} d5 {[%emt 0:09:09]} 14. O-O {[%emt 0:02:24]} Ba6 {[%emt 0:00:45]} 15. Rfc1 {[%emt 0:01:35]} Rfd8 {[%emt 0:01:54]} 16. Nf3 {[%emt 0:15:51]} dxc4 {[%emt 0:02:28]} 17. Qe4 {[%emt 0:01:20]} Qg6 {[%emt 0:04:52]} 18. Qh4 {[%emt 0:02:35]} Nd5 {[%emt 0:05:03]} 19. bxc4 {[%emt 0:02:37]} Be7 {[%emt 0:00:05]} 20. Qd4 {[%emt 0:00:04]} Nb4 {[%emt 0:04:16]} 21. Qc3 {[%emt 0:03:56]} Nd3 {[%emt 0:02:12]} 22. Rd1 {[%emt 0:03:16]} Bb4 {[%emt 0:05:29]} 23. Qc2 {[%emt 0:04:22]} Nxb2 {[%emt 0:01:16]} 24. Qxb2 {[%emt 0:00:23]} Bxc4 {[%emt 0:00:03]} 25. a3 {[%emt 0:01:03]} Bf8 {[%emt 0:00:22]} 26. Rxd8 {[%emt 0:02:15]} Rxd8 {[%emt 0:00:04]} 27. Qc3 {[%emt 0:00:04]} Qd3 {[%emt 0:07:14]} 28. Qxa5 {[%emt 0:00:10]} Qc2 {[%emt 0:00:03]} 29. h3 {[%emt 0:01:49]} Rb8 {[%emt 0:01:27]} 30. Qd2 {[%emt 0:02:58]} Rb1+ {[%emt 0:05:05]} 31. Rxb1 {[%emt 0:00:06]} Qxb1+ {[%emt 0:00:03]} 32. Kh2 {[%emt 0:00:09]} Bd5 {[%emt 0:00:03]} 33. a4 {[%emt 0:03:01]} Qb3 {[%emt 0:00:42]} 34. Qf4 {[%emt 0:00:44]} h6 {[%emt 0:04:18]} 35. a5 {[%emt 0:00:15]} Qa2 {[%emt 0:00:21]} 36. Nd4 {[%emt 0:03:58]} Bxg2 {[%emt 0:02:23]} 37. Kxg2 {[%emt 0:00:28]} Qd5+ {[%emt 0:01:43]} 38. Kh2 {[%emt 0:00:38]} Bc5 {[%emt 0:00:15]} 39. Nf5 {[%emt 0:00:44]} Qa2 {[%emt 0:00:38]} 40. Kg2 {[%emt 0:00:18]} Qd5+ {[%emt 0:00:36]} 41. Kh2 {[%emt 0:30:18]} Kh7 {[%emt 0:08:29]} 42. Ne3 {[%emt 0:00:00]} Qa2 {[%emt 0:02:24]} 43. h4 {[%emt 0:00:00]} Kg8 {[%emt 0:01:16]} 44. Ng4 {[%emt 0:00:00]} h5 {[%emt 0:03:33]} 45. Ne3 {[%emt 0:00:00]} Qxa5 {[%emt 0:00:16]} 46. e6 {[%emt 0:00:00]} fxe6 {[%emt 0:07:25]} 47. Qe5 {[%emt 0:00:00]} Qa2 {[%emt 0:02:48]} 48. Qxc5 {[%emt 0:00:00]} Qxf2+ {[%emt 0:00:05]} 49. Kh3 {[%emt 0:00:00]} Qg1 {[%emt 0:00:12]} 50. Qxc6 {[%emt 0:00:00]} Qxe3 {[%emt 0:00:42]} 51. Qe8+ {[%emt 0:00:00]} Kh7 {[%emt 0:00:04]} 52. Qxh5+ {[%emt 0:00:00]} Qh6 {[%emt 0:00:04]} 53. Qe5 {[%emt 0:00:00]} Qf6 {[%emt 0:00:06]} 54. Qxc7 {[%emt 0:00:00]} Qf1+ {[%emt 0:00:13]} 55. Kh2 {[%emt 0:00:00]} Qf2+ {[%emt 0:02:54]} 56. Kh3 {[%emt 0:00:00]} Kg6 {[%emt 0:00:15]} 57. Qe7 {[%emt 0:00:00]} Qf6 {[%emt 0:00:40]} 58. Qe8+ {[%emt 0:00:00]} Qf7 {[%emt 0:01:25]} 59. Qxf7+ {[%emt 0:00:06]} Kxf7 {[%emt 0:00:50]} 60. Kg4 {[%emt 0:00:04]} Kg6 {[%emt 0:01:32]} 61. Kf4 {[%emt 0:00:16]} Kf6 {[%emt 0:00:08]} 62. Ke4 {[%emt 0:00:17]} e5 {[%emt 0:00:08]} 63. g4 {[%emt 0:00:06]} Ke6 {[%emt 0:00:04]} 64. Ke3 {[%emt 0:01:35]} Kd5 {[%emt 0:00:11]} 65. h5 {[%emt 0:00:27]} Ke6 {[%emt 0:00:04]} 66. g5 {[%emt 0:00:02]} Kf5 {[%emt 0:00:05]} 67. h6 {[%emt 0:00:07]} gxh6 {[%emt 0:00:05]} 68. gxh6 {[%emt 0:00:05]} Kg6 {[%emt 0:00:02]} 69. Ke4 {[%emt 0:00:04]} Kxh6 {[%emt 0:00:03]} 70. Kxe5 {[%emt 0:00:03]} 1/2-1/2

[Event "USA Junior-ch 2022"]
[Site "Saint Louis"]
[Date "2022.07.14"]
[Round "7.2"]
[White "Mishra, Abhimanyu"]
[Black "Wang, Justin"]
[Result "0-1"]
[ECO "C54"]
[WhiteElo "2553"]
[BlackElo "2469"]
[Annotator "ChessBase"]
[PlyCount "74"]
[EventDate "2022.07.07"]
[EventType "tourn"]
[EventCountry "USA"]
[SourceTitle "playchess.com"]
[Source "ChessBase"]
[SourceQuality "1"]
[TimeControl "40/5400+30:1800+30"]

1. e4 {[%emt 0:00:02]} e5 {[%emt 0:00:29]} 2. Nf3 {[%emt 0:00:12]} Nc6 {[%emt 0:00:44]} 3. Bc4 {[%emt 0:00:18]} Nf6 {[%emt 0:00:59]} 4. d3 {[%emt 0:00:17]} Bc5 {[%emt 0:02:04]} 5. c3 {[%emt 0:00:28]} d6 {[%emt 0:00:54]} 6. O-O {[%emt 0:00:28]} h6 {[%emt 0:00:20]} 7. Re1 {[%emt 0:01:06]} a6 {[%emt 0:03:29]} 8. a4 {[%emt 0:00:54]} Ba7 {[%emt 0:00:31]} 9. Nbd2 {[%emt 0:01:59]} O-O {[%emt 0:00:31]} 10. h3 {[%emt 0:01:50]} Be6 {[%emt 0:03:46]} 11. Bxe6 {[%emt 0:01:39]} fxe6 {[%emt 0:00:08]} 12. b4 {[%emt 0:01:30]} Qd7 {[%emt 0:06:11]} 13. Nc4 {[%emt 0:09:03]} Nh5 {[%emt 0:05:12]} 14. Ra2 {[%emt 0:02:13]} Nf4 {[%emt 0:00:45]} 15. Be3 {[%emt 0:11:07]} Bxe3 {[%emt 0:00:12]} 16. fxe3 {[%emt 0:04:00]} Ng6 {[%emt 0:00:14]} 17. Qb3 {[%emt 0:04:29]} Nd8 18. d4 {[%emt 0:00:30]} Nf7 19. Rf2 {[%emt 0:00:30]} Qe7 20. Ncd2 {[%emt 0:00:30]} Rae8 21. a5 {[%emt 0:00:30]} c6 22. Ref1 {[%emt 0:00:30]} Ng5 23. d5 {[%emt 0:00:30]} Nxf3+ 24. Nxf3 {[%emt 0:00:30]} cxd5 25. exd5 {[%emt 0:00:30]} Rf5 26. Nd2 {[%emt 0:00:30]} Qg5 27. c4 {[%emt 0:00:30]} Rxf2 28. Rxf2 {[%emt 0:00:30]} exd5 29. cxd5 {[%emt 0:00:30]} e4 30. Nc4 {[%emt 0:00:30]} Rc8 31. Rc2 {[%emt 0:00:30]} Qg3 32. Rf2 {[%emt 0:00:30]} Nh4 33. Qa2 {[%emt 0:00:30]} Rc7 34. Kf1 {[%emt 0:00:30]} Qh2 35. Nd2 {[%emt 0:00:30]} Rc1+ 36. Ke2 {[%emt 0:00:30]} Qg1 37. Nf1 {[%emt 0:00:30]} Nxg2 0-1

[Event "USA Junior-ch 2022"]
[Site "Saint Louis"]
[Date "2022.07.14"]
[Round "7.3"]
[White "Yoo, Christopher Woojin"]
[Black "Brodsky, David"]
[Result "0-1"]
[ECO "C83"]
[WhiteElo "2550"]
[BlackElo "2496"]
[Annotator "ChessBase"]
[PlyCount "120"]
[EventDate "2022.07.07"]
[EventType "tourn"]
[EventCountry "USA"]
[SourceTitle "playchess.com"]
[Source "ChessBase"]
[SourceQuality "1"]
[TimeControl "40/5400+30:1800+30"]

1. e4 {[%emt 0:00:08]} e5 {[%emt 0:00:02]} 2. Nf3 {[%emt 0:00:05]} Nc6 {[%emt 0:00:03]} 3. Bb5 {[%emt 0:00:14]} a6 {[%emt 0:00:07]} 4. Ba4 {[%emt 0:00:05]} Nf6 {[%emt 0:00:05]} 5. O-O {[%emt 0:00:06]} Nxe4 {[%emt 0:00:08]} 6. d4 {[%emt 0:00:03]} b5 {[%emt 0:00:05]} 7. Bb3 {[%emt 0:00:04]} d5 {[%emt 0:00:03]} 8. dxe5 {[%emt 0:00:05]} Be6 {[%emt 0:00:03]} 9. Be3 {[%emt 0:01:34]} Be7 {[%emt 0:00:12]} 10. c3 {[%emt 0:01:39]} O-O {[%emt 0:00:18]} 11. Nbd2 {[%emt 0:00:05]} Bg4 {[%emt 0:00:15]} 12. h3 {[%emt 0:01:11]} Nxd2 {[%emt 0:00:14]} 13. hxg4 {[%emt 0:00:16]} Nxf1 {[%emt 0:00:11]} 14. Kxf1 {[%emt 0:00:53]} Na5 {[%emt 0:06:59]} 15. Bxd5 {[%emt 0:00:33]} c6 {[%emt 0:00:48]} 16. Be4 {[%emt 0:00:14]} Nc4 {[%emt 0:05:25]} 17. Qe2 {[%emt 0:04:54]} Qd7 {[%emt 0:07:25]} 18. Bf5 {[%emt 0:05:12]} Qd5 {[%emt 0:05:55]} 19. Bf4 {[%emt 0:04:44]} Nxb2 {[%emt 0:02:48]} 20. e6 {[%emt 0:17:48]} Qc4 {[%emt 0:02:09]} 21. Ne5 {[%emt 0:03:48]} Qxe2+ {[%emt 0:02:51]} 22. Kxe2 {[%emt 0:00:17]} Bf6 {[%emt 0:09:19]} 23. Rh1 {[%emt 0:07:02]} h6 {[%emt 0:05:23]} 24. exf7+ {[%emt 0:01:42]} Rxf7 {[%emt 0:00:04]} 25. Nxf7 {[%emt 0:00:04]} Kxf7 {[%emt 0:00:22]} 26. Be4 {[%emt 0:01:13]} Na4 {[%emt 0:01:02]} 27. Bxc6 {[%emt 0:02:05]} Nxc3+ {[%emt 0:00:15]} 28. Kf3 {[%emt 0:00:04]} Rd8 {[%emt 0:01:14]} 29. Rh5 {[%emt 0:04:44]} Rd3+ {[%emt 0:11:36]} 30. Be3 {[%emt 0:00:05]} Bg5 {[%emt 0:01:45]} 31. Be4 {[%emt 0:02:50]} Nxe4 {[%emt 0:00:08]} 32. Kxe4 {[%emt 0:00:04]} Ra3 {[%emt 0:00:04]} 33. f4 {[%emt 0:04:13]} Ra4+ {[%emt 0:07:35]} 34. Kf3 {[%emt 0:02:27]} Bf6 {[%emt 0:01:27]} 35. Rc5 {[%emt 0:01:59]} Rxa2 {[%emt 0:00:34]} 36. g5 {[%emt 0:00:16]} hxg5 {[%emt 0:02:23]} 37. fxg5 {[%emt 0:00:06]} Ba1 {[%emt 0:09:08]} 38. Rc6 {[%emt 0:01:15]} b4 {[%emt 0:00:49]} 39. g6+ {[%emt 0:01:56]} Ke7 {[%emt 0:03:45]} 40. Bc5+ {[%emt 0:04:54]} Kd7 {[%emt 0:00:16]} 41. Rd6+ {[%emt 0:30:07]} Kc7 {[%emt 0:30:07]} 42. Bxb4 {[%emt 0:00:09]} Bc3 {[%emt 0:04:08]} 43. Bxc3 {[%emt 0:00:29]} Kxd6 {[%emt 0:00:05]} 44. Bxg7 {[%emt 0:00:05]} a5 {[%emt 0:00:00]} 45. Bf8+ {[%emt 0:00:00]} Ke6 {[%emt 0:00:00]} 46. g7 {[%emt 0:00:00]} Kf7 {[%emt 0:00:00]} 47. Ke3 {[%emt 0:00:00]} Rxg2 {[%emt 0:00:00]} 48. Kd3 {[%emt 0:00:00]} Rb2 {[%emt 0:00:00]} 49. Kc3 {[%emt 0:00:00]} Rb7 {[%emt 0:00:00]} 50. Kc4 {[%emt 0:00:00]} a4 {[%emt 0:00:00]} 51. Bb4 {[%emt 0:00:00]} Kxg7 {[%emt 0:00:00]} 52. Kc3 {[%emt 0:00:00]} Kf6 {[%emt 0:00:00]} 53. Kc4 {[%emt 0:00:00]} Ke5 {[%emt 0:00:00]} 54. Kc3 {[%emt 0:00:00]} Kd5 {[%emt 0:00:00]} 55. Bf8 {[%emt 0:00:00]} Rb3+ {[%emt 0:00:00]} 56. Kc2 {[%emt 0:00:00]} Kc4 {[%emt 0:00:00]} 57. Bh6 {[%emt 0:00:11]} a3 {[%emt 0:00:00]} 58. Bc1 {[%emt 0:00:03]} a2 {[%emt 0:00:00]} 59. Bb2 {[%emt 0:00:04]} Rg3 {[%emt 0:00:00]} 60. Be5 {[%emt 0:00:05]} Rg2+ {[%emt 0:00:00]} 0-1